bitfinex-derivatives/quotes_BNBF0:USTF0_20250710
["timestamp","ask_amount","ask_price","bid_price","bid_amount"]
[1752151923008,1.67548427,670.7,669.85,2.22586299]
[1752151923208,1.67548427,670.69,669.86,2.22586299]
[1752151923608,1.67548427,670.67,669.91,2.22586299]
[1752151924209,1.67548427,670.66,669.91,2.22586299]
[1752151924608,1.67548427,670.66,669.93,2.22586299]
[1752151925209,1.67548427,670.65,669.94,4.15186299]
[1752151925909,1.67548427,670.64,669.96,2.22586299]
[1752151926108,1.67548427,670.63,669.97,2.22586299]
[1752151927106,1.67548427,670.64,669.98,2.22586299]
[1752151927309,1.67548427,670.64,669.94,1.926]
[1752151927310,1.67548427,670.64,669.97,2.22586299]
[1752151927713,1.67548427,670.64,669.98,2.22586299]
[1752151931616,1.67548427,670.62,670.02,2.22586299]
[1752151932819,1.67548427,670.62,670.01,2.22586299]
[1752151933115,1.67548427,670.62,670.02,2.22586299]
[1752151934622,1.67548427,670.61,670.04,2.22586299]
[1752151934816,1.67548427,670.62,670.03,2.22586299]
[1752151936019,1.67548427,670.61,670.03,2.22586299]
[1752151937121,1.67548427,670.61,670.04,2.22586299]
[1752151940320,1.67548427,670.6,670.04,2.22586299]
[1752151941124,1.67548427,670.6,670.05,2.22586299]
[1752151942125,1.67548427,670.61,670.04,2.22586299]
[1752151942522,1.67548427,670.61,670.05,2.22586299]
[1752151942728,1.67548427,670.61,670.06,2.22586299]
[1752151943227,1.67548427,670.61,670.03,2.22586299]
[1752151943727,1.67548427,670.61,670.04,2.22586299]
[1752151944725,1.67548427,670.6,670.05,2.22586299]
[1752151945629,1.67548427,670.61,670.04,2.22586299]
[1752151946227,1.67548427,670.6,670.05,2.22586299]
[1752151947325,1.67548427,670.59,670.06,2.22586299]
[1752151949126,1.67548427,670.59,670.05,2.22586299]
[1752151949831,1.67548427,670.59,670.06,2.22586299]
[1752151952530,1.67548427,670.58,670.05,2.22586299]
[1752151952936,1.67548427,670.58,670.07,2.22586299]
[1752151955134,1.67548427,670.57,670.08,2.22586299]
[1752151955634,1.67548427,670.57,670.09,2.22586299]
[1752151956232,1.67548427,670.57,670.08,2.22586299]
[1752151957135,1.67548427,670.57,670.09,2.22586299]
[1752151958138,1.67548427,670.6,670.02,2.22586299]
[1752151958336,1.67548427,670.6,670.03,2.22586299]
[1752151958932,1.67548427,670.59,670.03,2.22586299]
[1752151959435,1.67548427,670.68,670.11,2.22586299]
[1752151959637,1.67548427,670.69,670.1,2.22586299]
[1752151960338,1.67548427,670.7,670.09,2.22586299]
[1752151961534,1.67548427,670.7,670.08,2.22586299]
[1752151961739,1.67548427,670.71,670.06,2.22586299]
[1752151962338,1.67548427,670.72,670.04,2.22586299]
[1752151962534,1.67548427,670.72,670.03,2.22586299]
[1752151963342,1.67548427,670.73,670.03,2.22586299]
[1752151964747,1.67548427,670.72,670.04,2.22586299]
[1752151965448,1.67548427,670.74,670.01,2.22586299]
[1752151965850,1.67548427,670.74,670.0,2.22586299]
[1752151967255,1.67548427,670.75,669.98,2.22586299]
[1752151967455,1.67548427,670.75,670.01,2.018]
[1752151968255,1.67548427,670.76,670.01,2.018]
[1752151975068,1.67548427,670.75,670.02,2.22586299]
[1752151975565,1.67548427,670.75,670.01,4.24386299]
[1752151975764,1.67548427,670.74,670.02,2.22586299]
[1752151976665,1.67548427,670.74,670.03,2.22586299]
[1752151977170,1.67548427,670.73,670.06,2.22586299]
[1752151977666,1.67548427,670.72,670.08,2.22586299]
[1752151979164,1.67548427,670.73,670.07,2.22586299]
[1752151979665,1.67548427,670.73,670.06,2.22586299]
[1752151980770,1.67548427,670.72,670.08,2.22586299]
[1752151981471,1.67548427,670.72,670.09,2.22586299]
[1752151982372,1.67548427,670.72,670.1,2.22586299]
[1752151985468,1.67548427,670.74,670.05,2.22586299]
[1752151989069,1.67548427,670.74,670.06,2.22586299]
[1752151989770,1.67548427,670.74,670.07,2.22586299]
[1752151992174,1.67548427,670.74,670.06,2.22586299]
[1752151992376,1.67548427,670.73,670.06,2.22586299]
[1752151993473,1.67548427,670.73,670.01,2.018]
[1752151993474,1.67548427,670.74,670.04,2.22586299]
[1752151995378,1.67548427,670.72,670.07,2.22586299]
[1752151998179,1.67548427,670.72,670.08,2.22586299]
[1752151999082,1.67548427,670.73,670.06,2.22586299]
[1752151999382,1.67548427,670.73,670.05,2.22586299]
[1752151999681,1.67373949,670.73,670.05,2.22586299]
[1752152001080,1.67373949,670.73,670.06,2.22586299]
[1752152001281,1.67373949,670.73,670.07,2.22586299]
[1752152001778,1.67373949,670.73,670.06,2.22586299]
[1752152002284,1.67373949,670.73,670.05,2.22586299]
[1752152002785,1.67373949,670.73,670.06,2.22586299]
[1752152003484,1.67373949,670.72,670.07,2.22586299]
[1752152005289,1.67373949,670.72,670.08,2.22586299]
[1752152005989,1.67373949,670.72,670.07,2.22586299]
[1752152006284,1.67373949,670.72,670.08,2.22586299]
[1752152008386,1.67373949,670.71,670.08,2.22586299]
[1752152008990,1.67373949,670.71,670.1,2.22586299]
[1752152009186,1.67373949,670.71,670.08,2.22586299]
[1752152009489,1.67373949,670.72,670.1,2.22586299]
[1752152011391,2.23018565,670.85,670.01,2.018]
[1752152011392,1.67373949,670.71,670.11,2.22586299]
[1752152012193,1.67373949,670.7,670.13,2.22586299]
[1752152012490,1.67373949,670.7,670.12,2.22586299]
[1752152013493,1.67373949,670.7,670.13,2.22586299]
[1752152014296,1.67373949,670.7,670.12,2.22586299]
[1752152015795,1.67373949,670.7,670.13,2.22586299]
[1752152016693,1.67373949,670.69,670.13,2.22586299]
[1752152017393,1.67373949,670.68,670.14,2.22586299]
[1752152018397,1.67373949,670.69,670.12,2.22586299]
[1752152018993,1.67373949,670.69,670.13,2.487]
[1752152019196,1.67373949,670.68,670.13,4.71286299]
[1752152021495,1.67373949,670.68,670.14,2.22586299]
[1752152024195,1.67373949,670.68,670.13,2.487]
[1752152024196,1.67373949,670.68,670.15,2.22586299]
[1752152026409,1.67373949,670.68,670.13,4.71286299]
[1752152028405,1.67373949,670.67,670.16,2.22586299]
[1752152028908,1.67373949,670.68,670.14,2.22586299]
[1752152029406,1.67373949,670.68,670.13,4.71286299]
[1752152029705,1.67373949,670.68,670.14,2.22586299]
[1752152030007,1.67373949,670.69,670.13,2.487]
[1752152030211,1.67373949,670.71,670.13,2.487]
[1752152030510,1.67373949,670.78,670.2,2.22586299]
[1752152030705,1.67373949,670.81,670.22,2.22586299]
[1752152031016,1.67373949,670.82,670.21,2.22586299]
[1752152031409,0.25933088,671.37,670.13,2.487]
[1752152031410,1.67373949,670.83,670.19,2.22586299]
[1752152031811,1.67373949,670.84,670.18,2.22586299]
[1752152032309,1.67373949,670.85,670.17,2.22586299]
[1752152032513,1.67373949,670.86,670.19,2.22586299]
[1752152033410,1.67373949,670.87,670.18,2.22586299]
[1752152034316,1.67373949,670.88,670.17,2.22586299]
[1752152035716,1.67372132,670.88,670.18,2.22586299]
[1752152036315,1.67372132,670.88,670.17,2.22586299]
[1752152037317,1.67372132,670.89,670.17,2.22586299]
[1752152038119,1.67372132,670.89,670.16,2.22586299]
[1752152039420,1.67372132,670.9,670.16,2.22586299]
[1752152039621,1.67372132,670.9,670.17,1.896]
[1752152040121,1.67372132,670.89,670.17,4.12186299]
[1752152040819,1.67372132,670.88,670.18,2.22586299]
[1752152041124,2.23018565,671.03,670.18,2.22586299]
[1752152041326,1.67297521,670.88,670.18,2.22586299]
[1752152041623,1.67297521,670.88,670.2,2.22586299]
[1752152042523,1.67297521,670.87,670.18,2.22586299]
[1752152042724,1.67297521,670.86,670.2,2.22586299]
[1752152045626,1.67297521,670.86,670.21,2.22586299]
[1752152046421,1.67297521,670.86,670.17,1.896]
[1752152046422,1.67297521,670.86,670.22,2.22586299]
[1752152047231,1.67297521,670.87,670.19,2.22586299]
[1752152048029,1.67297521,670.86,670.2,2.22586299]
[1752152049330,1.67297521,670.87,670.2,2.22586299]
[1752152052033,1.67297521,670.86,670.21,2.22586299]
[1752152052236,1.67297521,670.87,670.21,2.22586299]
[1752152057240,1.67297521,670.85,670.24,2.22586299]
[1752152058942,1.67297521,670.87,670.2,2.22586299]
[1752152059144,1.67297521,670.87,670.19,2.22586299]
[1752152062045,1.67297521,670.88,670.18,2.22586299]
[1752152062545,1.67297521,670.88,670.17,4.12186299]
[1752152063048,1.67297521,670.89,670.17,1.896]
[1752152066245,3.34527848,671.16,670.17,1.896]
[1752152066246,1.67297521,670.88,670.17,1.896]
[1752152068850,1.67297521,670.88,670.18,2.22586299]
[1752152069046,1.67297521,670.87,670.18,2.22586299]
[1752152069852,1.67297521,670.88,670.17,1.896]
[1752152070449,1.67297521,670.88,670.17,4.12186299]
[1752152071751,1.67297521,670.88,670.17,1.896]
[1752152071948,1.67297521,670.88,670.17,4.12186299]
[1752152072349,1.67297521,670.88,670.17,1.896]
[1752152072552,1.67297521,670.88,670.18,2.22586299]
[1752152072753,1.67297521,670.87,670.21,2.22586299]
[1752152077255,1.67297521,670.86,670.22,2.22586299]
[1752152081360,1.67297521,670.85,670.22,2.22586299]
[1752152082258,2.23018565,670.98,670.17,1.896]
[1752152082259,1.67297521,670.84,670.24,2.22586299]
[1752152082457,1.67297521,670.83,670.25,2.22586299]
[1752152082661,1.67297521,670.83,670.26,2.22586299]
[1752152083359,1.67297521,670.82,670.27,2.22586299]
[1752152084261,1.67297521,670.82,670.28,2.22586299]
[1752152084760,1.67297521,670.82,670.26,2.22586299]
[1752152085164,1.67297521,670.83,670.25,2.22586299]
[1752152085364,1.67297521,670.82,670.26,2.22586299]
[1752152086261,1.67297521,670.82,670.27,2.22586299]
[1752152086462,1.67297521,670.81,670.27,2.22586299]
[1752152087361,1.67297521,670.81,670.28,4.93086299]
[1752152087864,1.67297521,670.81,670.28,2.705]
[1752152089262,1.67297521,670.8,670.28,4.93086299]
[1752152090268,1.67297521,670.78,670.3,2.22586299]
[1752152091467,1.67297521,670.78,670.29,2.22586299]
[1752152091768,1.67297521,670.79,670.28,4.93086299]
[1752152092570,2.23018565,670.91,670.28,4.93086299]
[1752152092771,1.67633636,670.79,670.28,4.93086299]
[1752152094072,1.67633636,670.78,670.28,4.93086299]
[1752152094469,1.67633636,670.78,670.29,2.22586299]
[1752152098178,1.67633636,670.78,670.3,2.22586299]
[1752152098478,1.67633636,670.8,670.28,2.705]
[1752152103578,1.67633636,670.81,670.28,2.705]
[1752152108282,1.67633636,670.8,670.28,2.705]
[1752152108484,1.67633636,670.79,670.28,2.705]
[1752152109181,1.67633636,670.78,670.28,2.705]
[1752152109385,1.67633636,670.79,670.28,2.705]
[1752152110181,1.67633636,670.78,670.28,2.705]
[1752152111382,1.67633636,670.79,670.28,2.705]
[1752152111882,1.67633636,670.78,670.28,2.705]
[1752152112287,1.67633636,670.79,670.28,2.705]
[1752152115588,1.67633636,670.8,670.28,2.705]
[1752152115786,1.67633636,670.83,670.28,2.705]
[1752152115987,1.67633636,670.82,670.28,2.705]
[1752152116188,1.67633636,670.81,670.28,2.705]
[1752152116388,1.67633636,670.82,670.28,2.705]
[1752152119190,1.67633636,670.81,670.28,2.705]
[1752152119387,1.67633636,670.77,670.28,2.705]
[1752152120493,1.67633636,670.78,670.28,2.705]
[1752152120890,1.67633636,670.77,670.28,2.705]
[1752152121395,1.67633636,670.7,670.28,2.705]
[1752152122391,1.67633636,670.71,670.28,2.705]
[1752152122795,1.67633636,670.7,670.28,2.705]
[1752152123195,2.23018565,670.83,670.28,2.705]
[1752152123196,1.67633636,670.71,670.28,2.705]
[1752152123394,1.67633636,670.71,670.13,2.22586299]
[1752152123592,1.67633636,670.71,670.14,2.22586299]
[1752152124997,1.67633636,670.7,670.13,2.22586299]
[1752152125398,2.23018565,670.83,670.06,0.25945269]
[1752152125399,1.67633636,670.71,670.12,2.22586299]
[1752152126395,1.67633636,670.71,670.13,1.838]
[1752152128394,1.67633636,670.72,670.13,1.838]
[1752152129401,1.67633636,670.71,670.13,4.06386299]
[1752152129600,1.67633636,670.71,670.14,2.22586299]
[1752152129801,1.67633636,670.71,670.15,2.22586299]
[1752152130000,1.67633636,670.7,670.15,2.22586299]
[1752152130302,1.67633636,670.71,670.14,2.22586299]
[1752152131500,1.67633636,670.71,670.13,4.06386299]
[1752152131700,1.67633636,670.72,670.13,1.838]
[1752152132399,1.67633636,670.72,670.13,4.06386299]
[1752152132700,1.67633636,670.72,670.13,1.838]
[1752152132998,1.67633636,670.72,670.13,4.06386299]
[1752152133197,1.67633636,670.72,670.13,1.838]
[1752152133403,1.67633636,670.73,670.13,1.838]
[1752152133999,1.67633636,670.74,670.13,1.838]
[1752152137433,1.67633636,670.75,670.13,1.838]
[1752152137910,1.67633636,670.76,670.13,1.838]
[1752152138317,1.67633636,670.77,670.13,1.838]
[1752152144221,1.67633636,670.76,670.13,1.838]
[1752152145019,1.67633636,670.77,670.13,1.838]
[1752152146821,1.67633636,670.76,670.13,1.838]
[1752152147419,1.67633636,670.76,670.06,0.25945269]
[1752152147620,1.67633636,670.75,670.06,2.48531568]
[1752152148021,1.67633636,670.75,670.07,2.22586299]
[1752152148425,1.67633636,670.75,670.06,2.48531568]
[1752152150225,1.67633636,670.75,670.07,2.22586299]
[1752152151229,1.67633636,670.75,670.08,2.306]
[1752152153229,1.67633636,670.75,670.08,4.53186299]
[1752152154328,1.67633636,670.74,670.08,4.53186299]
[1752152154829,1.67633636,670.74,670.1,2.22586299]
[1752152156124,1.67633636,670.73,670.11,2.22586299]
[1752152158427,1.67633636,670.73,670.08,2.306]
[1752152158428,1.67633636,670.73,670.12,2.22586299]
[1752152159433,1.67633636,670.74,670.09,2.22586299]
[1752152159930,1.67633636,670.74,670.1,2.22586299]
[1752152160729,2.23018565,670.86,670.1,2.22586299]
[1752152160930,1.67276363,670.74,670.1,2.22586299]
[1752152161230,1.67276363,670.74,670.08,4.53186299]
[1752152162733,1.67276363,670.75,670.09,2.22586299]
[1752152162928,1.67276363,670.76,670.08,2.306]
[1752152166234,1.67312249,670.76,670.08,2.306]
[1752152167334,1.67312249,670.75,670.08,2.306]
[1752152167834,1.67312249,670.76,670.08,2.306]
[1752152168037,1.67312249,670.75,670.08,2.306]
[1752152169133,1.67312249,670.76,670.08,2.306]
[1752152169336,1.67312249,670.75,670.08,2.306]
[1752152169736,1.67312249,670.76,670.08,2.306]
[1752152170733,1.67312249,670.77,670.08,2.306]
[1752152172535,1.67312249,670.76,670.08,2.306]
[1752152173039,1.67312249,670.79,670.08,2.306]
[1752152173239,1.67393221,670.79,670.08,2.306]
[1752152173432,1.67393221,670.78,670.08,2.306]
[1752152173633,1.67393221,670.79,670.08,2.306]
[1752152174440,1.67393221,670.78,670.08,2.306]
[1752152174941,1.67393221,670.87,670.08,4.53186299]
[1752152177843,1.67393221,670.86,670.1,2.22586299]
[1752152178041,1.67393221,670.85,670.13,2.22586299]
[1752152179839,1.67393221,670.85,670.12,2.22586299]
[1752152181146,1.67393221,670.86,670.12,2.22586299]
[1752152182749,1.67393221,670.83,670.19,2.22586299]
[1752152182947,1.67393221,670.83,670.2,2.22586299]
[1752152184045,1.67393221,670.83,670.19,2.22586299]
[1752152186147,1.67393221,670.84,670.19,2.22586299]
[1752152186452,1.67393221,670.84,670.05,3.33879449]
[1752152186453,1.67393221,670.84,670.18,2.22586299]
[1752152186650,1.67393221,670.84,670.2,2.51]
[1752152187250,5.57546414,671.64,670.2,2.51]
[1752152187251,1.67393221,670.83,670.2,2.51]
[1752152188446,1.67393221,670.84,670.2,2.51]
[1752152188746,1.67393221,670.85,670.2,2.51]
[1752152189551,1.67393221,670.86,670.2,2.51]
[1752152189758,1.67393221,670.85,670.2,2.51]
[1752152193252,2.23018565,671.0,670.2,2.51]
[1752152193253,1.67393221,670.86,670.2,2.51]
[1752152193854,1.67393221,670.85,670.2,2.51]
[1752152194353,1.67393221,670.86,670.2,2.51]
[1752152198559,1.67393221,670.84,670.21,2.22586299]
[1752152200460,1.67393221,670.84,670.22,2.22586299]
[1752152201657,1.67393221,670.85,670.22,2.22586299]
[1752152201956,1.67393221,670.85,670.19,2.22586299]
[1752152203160,1.67393221,670.85,670.2,1.811]
[1752152203764,1.67393221,670.87,670.2,1.811]
[1752152205358,1.67393221,670.94,670.2,1.811]
[1752152209165,1.67393221,670.93,670.2,1.811]
[1752152210667,1.67393221,671.01,670.2,1.811]
[1752152211462,1.67393221,670.98,670.2,1.811]
[1752152212366,1.67393221,670.99,670.2,1.811]
[1752152212667,1.67393221,670.98,670.2,1.811]
[1752152212980,1.67393221,670.97,670.2,1.811]
[1752152213362,1.67393221,670.98,670.2,1.811]
[1752152214267,1.67393221,670.95,670.24,2.22586299]
[1752152216470,1.67393221,670.96,670.23,2.22586299]
[1752152217471,1.67393221,670.95,670.24,2.22586299]
[1752152217670,1.67393221,670.95,670.25,2.22586299]
[1752152220368,1.67393221,670.95,670.24,2.22586299]
[1752152220867,1.67393221,670.96,670.23,2.22586299]
[1752152221473,1.67393221,670.99,670.2,1.811]
[1752152222069,1.67393221,670.98,670.2,1.811]
[1752152222571,1.67393221,670.97,670.2,1.811]
[1752152223475,1.67393221,670.96,670.2,1.811]
[1752152223672,1.67393221,670.97,670.2,1.811]
[1752152226378,1.67393221,670.96,670.2,1.811]
[1752152226980,1.67393221,670.95,670.2,1.811]
[1752152227485,1.67393221,670.91,670.2,1.811]
[1752152228285,1.67263873,670.91,670.2,1.811]
[1752152230284,1.67263873,670.9,670.2,1.811]
[1752152231488,1.67263873,670.87,670.18,0.25940724]
[1752152231891,1.67263873,670.9,670.18,0.25940724]
[1752152232490,1.67263873,670.89,670.18,0.25940724]
[1752152233486,1.67263873,670.88,670.19,2.069]
[1752152236490,1.67263873,670.87,670.19,2.069]
[1752152237087,1.67263873,670.88,670.19,2.069]
[1752152238688,0.25940724,671.28,670.19,2.069]
[1752152238689,1.67263873,670.86,670.19,2.069]
[1752152239890,2.23018565,671.03,670.19,2.069]
[1752152240094,1.67395252,670.86,670.19,2.069]
[1752152241694,1.67395252,670.83,670.19,2.069]
[1752152241894,1.67395252,670.82,670.19,4.29486299]
[1752152242391,1.67395252,670.83,670.19,4.29486299]
[1752152242690,1.67395252,670.83,670.19,2.069]
[1752152246095,1.67395252,670.87,670.19,2.069]
[1752152246694,1.67395252,670.86,670.19,2.069]
[1752152249397,1.67395252,670.87,670.19,2.069]
[1752152251595,1.67395252,670.87,670.18,0.25940724]
[1752152251797,1.67395252,670.86,670.18,0.25940724]
[1752152255203,1.67395252,670.86,670.19,2.169]
[1752152256002,1.67395252,670.83,670.19,4.39486299]
[1752152257002,1.67395252,670.83,670.19,2.169]
[1752152259305,1.67395252,670.81,670.22,2.22586299]
[1752152260707,1.67395252,670.82,670.21,2.22586299]
[1752152262408,1.67395252,670.82,670.2,2.22586299]
[1752152266719,1.67395252,670.82,670.19,4.39486299]
[1752152267018,1.67395252,670.81,670.23,2.22586299]
[1752152268018,1.67395252,670.82,670.21,2.22586299]
[1752152272221,1.67395252,670.81,670.21,2.22586299]
[1752152272517,1.67395252,670.81,670.22,2.22586299]
[1752152274623,1.67395252,670.81,670.19,2.169]
[1752152274624,1.67395252,670.81,670.21,2.22586299]
[1752152275820,1.67395252,670.83,670.19,2.169]
[1752152278224,1.67395252,670.82,670.19,2.169]
[1752152278424,1.67395252,670.84,670.19,2.169]
[1752152279330,1.67395252,670.83,670.19,2.169]
[1752152283935,1.67395252,670.82,670.19,2.169]
[1752152284237,0.25940724,671.28,670.19,2.169]
[1752152284238,1.67395252,670.83,670.19,2.169]
[1752152284435,1.67395252,670.82,670.19,2.169]
[1752152285740,1.67395252,670.81,670.19,2.169]
[1752152286436,1.67395252,670.8,670.19,2.169]
[1752152286940,1.67395252,670.81,670.19,2.169]
[1752152287440,1.67395252,670.86,670.19,2.169]
[1752152287943,1.67395252,670.87,670.19,2.169]
[1752152289443,1.67395252,670.86,670.19,2.169]
[1752152290843,2.23018565,671.07,670.19,2.169]
[1752152291143,1.67591228,670.86,670.19,2.169]
[1752152292145,1.67591228,670.84,670.19,2.169]
[1752152292841,1.67591228,670.8,670.22,2.22586299]
[1752152293045,1.67591228,670.79,670.24,2.22586299]
[1752152294055,1.67591228,670.78,670.26,2.22586299]
[1752152297248,1.67591228,670.78,670.19,2.169]
[1752152297249,1.67591228,670.79,670.27,2.22586299]
[1752152297450,1.67591228,670.78,670.28,2.22586299]
[1752152298046,1.67591228,670.79,670.28,2.22586299]
[1752152298348,1.67591228,670.78,670.28,2.22586299]
[1752152298549,1.67591228,670.79,670.28,2.22586299]
[1752152298745,1.67591228,670.79,670.26,2.22586299]
[1752152298945,1.67591228,670.8,670.24,2.22586299]
[1752152300948,1.67591228,670.82,670.2,2.22586299]
[1752152301650,1.67591228,670.82,670.21,2.538]
[1752152302948,1.67591228,670.83,670.22,2.22586299]
[1752152303853,1.67591228,670.84,670.21,4.76386299]
[1752152305055,2.23018565,670.99,670.21,4.76386299]
[1752152305256,1.67590056,670.84,670.21,2.538]
[1752152305554,1.67590056,670.84,670.21,4.76386299]
[1752152306658,1.67590056,670.84,670.21,2.538]
[1752152308854,1.67590056,670.83,670.21,2.538]
[1752152309358,1.67590056,670.93,670.3,2.22586299]
[1752152310259,1.67590056,670.94,670.29,2.22586299]
[1752152310855,1.67590056,670.93,670.32,2.22586299]
[1752152311059,1.67590056,670.93,670.31,2.22586299]
[1752152311355,1.67590056,670.94,670.3,2.22586299]
[1752152312259,1.67590056,670.94,670.29,2.22586299]
[1752152312559,1.67590056,670.94,670.3,2.22586299]
[1752152312860,1.67590056,670.95,670.25,2.22586299]
[1752152313156,1.67590056,670.94,670.25,2.22586299]
[1752152313360,1.67590056,670.95,670.24,2.22586299]
[1752152313660,1.67590056,670.94,670.25,2.22586299]
[1752152314263,1.67590056,670.95,670.25,2.22586299]
[1752152314561,1.67590056,670.94,670.25,2.22586299]
[1752152315162,1.67590056,670.94,670.24,2.22586299]
[1752152315563,1.67590056,670.94,670.25,2.22586299]
[1752152316163,1.67590056,670.94,670.24,2.22586299]
[1752152317163,1.67590056,670.94,670.25,2.22586299]
[1752152319262,1.67590056,670.97,670.21,2.538]
[1752152322669,1.67590056,670.96,670.21,4.76386299]
[1752152322868,1.67590056,670.96,670.22,2.22586299]
[1752152323469,1.67590056,670.96,670.21,4.76386299]
[1752152323765,1.67590056,670.96,670.22,2.22586299]
[1752152324169,1.67590056,670.97,670.21,4.76386299]
[1752152325371,1.67590056,670.97,670.22,2.22586299]
[1752152325971,1.67590056,670.96,670.22,2.22586299]
[1752152326175,1.67590056,670.97,670.22,2.22586299]
[1752152326475,1.67590056,670.96,670.22,2.22586299]
[1752152329075,1.67590056,670.94,670.29,2.22586299]
[1752152330279,1.67590056,670.95,670.29,2.22586299]
[1752152330986,1.67590056,670.94,670.32,2.22586299]
[1752152331475,1.67590056,670.93,670.32,2.22586299]
[1752152331776,1.67590056,670.94,670.32,2.22586299]
[1752152334684,1.67590056,670.96,670.28,2.22586299]
[1752152334880,1.67590056,670.95,670.28,2.22586299]
[1752152335107,1.67590056,670.95,670.3,2.22586299]
[1752152339286,1.67590056,670.95,670.21,2.538]
[1752152339287,1.67590056,670.95,670.29,2.22586299]
[1752152341184,1.67590056,670.95,670.21,2.538]
[1752152341185,1.67590056,670.95,670.28,2.22586299]
[1752152341485,1.67590056,670.96,670.26,2.22586299]
[1752152342286,1.67590056,670.97,670.24,2.22586299]
[1752152344690,1.67590056,670.96,670.25,2.22586299]
[1752152348294,1.67590056,670.97,670.24,2.22586299]
[1752152349190,1.67590056,670.96,670.25,4.63986299]
[1752152349792,1.67590056,670.97,670.25,2.414]
[1752152351494,1.67590056,670.96,670.25,4.63986299]
[1752152352097,1.67590056,670.96,670.26,2.22586299]
[1752152352398,1.67590056,670.95,670.27,2.22586299]
[1752152353697,1.67590056,670.97,670.25,2.414]
[1752152358102,1.67590056,670.96,670.25,2.414]
[1752152361127,1.67590056,670.97,670.25,2.414]
[1752152361304,1.67590056,670.96,670.25,2.414]
[1752152363511,1.67590056,670.95,670.25,2.414]
[1752152363710,1.67590056,670.94,670.26,2.22586299]
[1752152364213,1.67590056,670.94,670.27,2.22586299]
[1752152364610,1.67590056,670.93,670.28,2.22586299]
[1752152366213,1.67590056,670.95,670.25,2.414]
[1752152367108,1.67590056,670.94,670.25,4.63986299]
[1752152368413,1.67590056,670.93,670.25,4.63986299]
[1752152369214,1.67590056,670.92,670.27,2.22586299]
[1752152369715,1.67590056,670.92,670.26,2.22586299]
[1752152370713,1.67590056,670.93,670.25,4.63986299]
[1752152370913,1.67590056,670.99,670.25,2.414]
[1752152371821,1.67590056,671.0,670.25,2.414]
[1752152375227,1.67590056,670.99,670.25,2.414]
[1752152377127,1.67590056,671.01,670.25,2.414]
[1752152379532,1.67590056,671.02,670.25,2.414]
[1752152379732,1.67590056,671.01,670.25,2.414]
[1752152380838,1.67590056,670.99,670.25,2.414]
[1752152383037,1.67590056,670.97,670.25,2.414]
[1752152384037,1.67590056,670.99,670.25,2.414]
[1752152387038,1.67590056,670.96,670.25,2.414]
[1752152387339,1.67590056,670.96,670.18,0.25940724]
[1752152388038,1.67590056,670.94,670.2,2.22586299]
[1752152389845,1.67590056,670.94,670.26,0.25939274]
[1752152390841,1.67590056,670.94,670.27,1.814]
[1752152392446,1.67584623,670.94,670.27,1.814]
[1752152393145,1.67584623,670.93,670.27,1.814]
[1752152393946,1.67584623,670.89,670.28,2.22586299]
[1752152394144,1.67584623,670.9,670.27,4.03986299]
[1752152394547,1.67584623,670.9,670.27,1.814]
[1752152394748,1.67584623,670.88,670.31,2.22586299]
[1752152395559,1.67584623,670.88,670.3,2.22586299]
[1752152395750,1.67584623,670.89,670.3,2.22586299]
[1752152397049,1.67584623,670.88,670.3,2.22586299]
[1752152397451,1.67584623,670.88,670.31,2.22586299]
[1752152397949,1.67584623,670.88,670.32,2.22586299]
[1752152398148,2.23018565,671.02,670.32,2.22586299]
[1752152398347,1.67574136,670.88,670.31,2.22586299]
[1752152398551,1.67574136,670.88,670.32,2.22586299]
[1752152400148,1.67574136,670.88,670.31,2.22586299]
[1752152400448,1.67574136,670.88,670.3,2.22586299]
[1752152400952,1.67574136,670.88,670.31,2.22586299]
[1752152401550,1.67574136,670.88,670.27,1.814]
[1752152401551,1.67574136,671.06,670.48,2.22586299]
[1752152402248,1.67574136,671.06,670.49,2.22586299]
[1752152403454,1.67574136,671.05,670.49,2.22586299]
[1752152403657,1.67574136,671.05,670.5,2.22586299]
[1752152404057,1.67574136,671.05,670.51,2.22586299]
[1752152404255,1.67574136,671.03,670.49,2.22586299]
[1752152404756,1.67574136,671.02,670.51,2.22586299]
[1752152405554,1.67574136,671.01,670.54,2.22586299]
[1752152405857,1.67574136,671.01,670.55,2.22586299]
[1752152406559,1.67574136,671.04,670.48,2.22586299]
[1752152407056,1.67574136,671.04,670.49,2.808]
[1752152407255,1.67574136,671.02,670.49,2.808]
[1752152408556,1.67574136,671.03,670.49,2.808]
[1752152409860,1.67574136,671.05,670.49,2.808]
[1752152413463,1.67574136,671.06,670.49,2.808]
[1752152416360,1.67574136,671.05,670.49,2.808]
[1752152416864,1.67574136,671.06,670.49,2.808]